Workbook

Sheet G702
A1: APPLICATION AND CERTIFICATION FOR PAYMENT | G1: AIA DOCUMENT G702 | M1: Rev: | N1: 2019-02-10
A3: TO CONTRACTOR: | D3: PROJECT: | E3: La Caille Phase I | H3: APPLICATION NO: | I3: 0 | K3: Distribution to:
C5: Milestone | E5: 9565 South Wasatch Blvd | L5: OWNER
C7: 1883 E 9400 S | E7: Sandy UT 84092-6009 | H7: APPLICATION DATE: | I7: 2020-12-01 | L7: ARCHITECT
C9: Sandy UT 84093 | H9: PERIOD ENDNG: | I9: =+I7 -> 2020-12-01 | L9: CONTRACTOR
A11: FROM SUBCONTRACTOR: | D11: VIA ARCHITECT: | E11: Lu'na
C13: Fire Suppression Services Incorporated | E13: 175 W 200 E #2020 | H13: Contract Date | I13: 2020-11-01
C15: 3802 South 2300 East | E15: SLC UT 84101 | H15: Start Date | I15: 2020-12-10
C16: Milcreek UT 84109 | E16: (801) 350-2046 | H16: CONTRACT NUMBER: | I16: 20YY-####
A17: CONTRACT FOR: | C17: Div-21 Fire Suppression -Sprinklers | H17: Invoice Number | J17: Need number
A19: CONTRACTOR'S APPLICATION FOR PAYMENT | G19: The undersigned Subcontractor certifies that to the best of the Subcontractor's knowledge,
A20: Application is made for payment, as shown below, in connection with the Contract. | G20: information and belief the Work covered by this Application for Payment has been
A21: Continuation Sheet, AIA Document G703, is attached. | G21: completed in accordance with the Subcontract Documents, that all amounts have been paid by
G22: the Subcontractor for Work for which previous Certificates for Payment were issued and
G23: payments received from the Contractor, and that current payment shown herein is now due.
A25: 1. ORIGINAL CONTRACT SUM | D25: $ | E25: =4000+1500 -> 5500 | G25: Subcontractor: | I25: Fire Suppression Services Incorporated
A26: 2. Net change by Change Orders | D26: $ | E26: =+D53 -> 0
A27: 3. CONTRACT SUM TO DATE (Line 1 ± 2) $ | D27: $ | E27: =SUM(E25:E26) -> 5500
A28: 4. TOTAL COMPLETED & STORED TO | D28: $ | E28: ='G703'!K91 -> 0 | G28: By: | K28: Date:
A29: DATE (Column G on G703) | G29: State of: | J29: County of:
A30: 5. RETAINAGE: | G30: Subscribed and sworn to before me this ___________ day of ___________ 2015
A31: a. | B31: 0 | C31: of Completed Work | D31: ='G703'!H94+'G703'!I94 -> 0 | E31: =+D31*B31 -> 0
B32: (Column D + E on G703) | G32: Notary Public: _______________________________________________________________
A33: b. | B33: 0.05 | C33: of Stored Material | D33: ='G703'!J94 -> 0 | E33: =+D33*B33 -> 0
B34: (Column F on G703)
A35: Total Retainage (Lines 5a + 5b or | E35: =+E31+E33 -> 0 | G35: My Commission expires:
B36: Total in Column I of G703) | D36: $ | E36: ='G703'!N91 -> 0 | G36: CONTRACTORS CERTIFICATE FOR PAYMENT
A37: 6. TOTAL EARNED LESS RETAINAGE | D37: $ | E37: =IF(E36<E35,E28-E36,E28-E35) -> 0 | G37: In accordance with the Contract Documents, based on on-site observations and the data
B38: (Line 4 Less Line 5 Total) | G38: comprising the application, the Contractor certifies to the Owner that to the best of the
A39: 7. LESS PREVIOUS CERTIFICATES FOR | G39: Contractor's knowledge, information and belief the Work has progressed as indicated,
A40: PAYMENT (Line 6 from prior Certificate) | D40: $ | G40: the quality of the Work is in accordance with the Contract Documents, and the Subcontractor
A41: 8. CURRENT PAYMENT DUE | D41: $ | E41: =E37-E40 -> 0 | G41: is entitled to payment of the AMOUNT CERTIFIED.
A42: 9. BALANCE TO FINISH, INCLUDING RETAINAGE | D42: $ | E42: 0
B43: (Line 3 less Line 6) | G43: AMOUNT CERTIFIED . . . . . . . . . . . $
A45: CHANGE ORDER SUMMARY | D45: ADDITIONS | E45: DEDUCTIONS | G45: (Attach explanation if amount certified differs from the amount applied. Initial all figures on this
A46: Total changes approved | G46: Application and on the Continuation Sheet that are changed to conform with the amount certified.)
A47: in previous months by Owner | D47: 0 | E47: 0 | G47: CONTRACTOR
A49: Total approved this Month | D49: 0 | E49: 0 | G49: By: | K49: Date:
A51: TOTALS | D51: =D47+D49 -> 0 | E51: =E47+E49 -> 0 | G51: This Certificate is not negotiable. The AMOUNT CERTIFIED is payable only to the
G52: Subcontractor named herein. Issuance, payment and acceptance of payment are without
A53: NET CHANGES by Change Order | D53: =D51-E51 -> 0 | G53: prejudice to any rights of the Owner or Contractor under this Contract.
A55: AIA DOCUMENT G702 · APPLICATION AND CERTIFICATION FOR PAYMENT · 1992 EDITION · AIA · ©1992 | G55: THE AMERICAN INSTITUTE OF ARCHITECTS, 1735 NEW YORK AVE., N.W., WASHINGTON, DC 20006-5292
A56: Users may obtain validation of this document by requesting a completed AIA Document D401 - Certification of Document's Authenticity from the Licensee. | N56: =+"Rev: "&TEXT(N1,"yyyy-mm-dd;;;") -> Rev: 2019-02-10

Sheet G703
B1: CONTINUATION SHEET | I1: AIA DOCUMENT G703
B3: AIA Document G702, APPLICATION AND CERTIFICATION FOR PAYMENT, containing | L3: APPLICATION NO: | M3: ='G702'!I3 -> 0
B4: Contractor's signed certification is attached. | I4: Bid Date: | J4: 2019-02-01 | L4: APPLICATION DATE: | M4: ='G702'!I7 -> 2020-12-01
B5: In tabulations below, amounts are stated to the nearest dollar. | I5: Contract Date: | J5: =+'G702'!I13 -> 2020-11-01 | L5: PERIOD ENDING: | M5: ='G702'!I9 -> 2020-12-01
B6: Use Column I on Contracts where variable retainage for line items may apply. | G6: =+'G702'!B31 -> 0 | I6: Start Date: | J6: =+'G702'!I15 -> 2020-12-10 | L6: CONTRACT NUMBER: | M6: ='G702'!I16 -> 20YY-####
I7: End Date: | J7: =+J6+25 -> 2021-01-04 | L7: INVOICE#: | M7: =+'G702'!I17 -> 0
B8: A | C8: B | G8: C | H8: D | I8: E | J8: F | K8: G | M8: H | N8: I
B9: ITEM | C9: DESCRIPTION OF WORK | G9: SCHEDULED | H9: WORK COMPLETED | J9: MATERIALS | K9: TOTAL | L9: % | M9: BALANCE | N9: RETAINAGE
B10: NO. | C10: =IF('G702'!I17<1,"see G702 Invoice number","Inv#: " &'G702'!I17) -> see G702 Invoice number | G10: VALUE | H10: FROM PREVIOUS | I10: THIS PERIOD | J10: PRESENTLY | K10: COMPLETED | L10: (G ÷ C) | M10: TO FINISH | N10: (IF VARIABLE
H11: APPLICATION | J11: STORED | K11: AND STORED | M11: (C - G) | N11: RATE)
H12: (D + E) | J12: (NOT IN | K12: TO DATE
J13: D OR E) | K13: (D+E+F)
B14: =+B13+1 -> 1 | C14: PRELIMINARYS
B15: =+B14+1 -> 2 | D15: Bond | G15: 0 | H15: 0 | I15: 0 | K15: =H15+I15+J15 -> 0 | L15: =IF(G15>0,K15/G15,0) -> 0 | M15: =G15-K15 -> 0 | N15: 0 | O15: No Retention
B16: =+B15+1 -> 3 | D16: Design | G16: =2000+385+500 -> 2885 | H16: 0 | I16: 0 | K16: =H16+I16+J16 -> 0 | L16: =IF(G16>0,K16/G16,0) -> 0 | M16: =G16-K16 -> 2885 | N16: 0 | O16: No Retention
B17: 4 | D17: Submit | G17: 165 | H17: 0 | I17: 0 | K17: =H17+I17+J17 -> 0 | L17: 0 | M17: =G17-K17 -> 165 | N17: 0 | O17: No Retention
B18: 5 | D18: Permit | G18: 200 | H18: 0 | I18: 0 | K18: =H18+I18+J18 -> 0 | L18: 0 | M18: =G18-K18 -> 200 | N18: 0 | O18: No Retention
B19: 6
B20: 7 | D20: Printing / Drawings
B21: 8 | E21: Design-Submit stage | G21: 165 | H21: 0 | K21: =H21+I21+J21 -> 0 | L21: =IF(G21>0,K21/G21,0) -> 0 | M21: =G21-K21 -> 165 | N21: =K21*$G$6 -> 0
B22: 9
B23: 10
B24: 11 | C24: MOVEMENT
B25: 12 | D25: Mobilisation | G25: 0 | H25: 0 | I25: 0 | K25: =H25+I25+J25 -> 0 | L25: =IF(G25>0,K25/G25,0) -> 0 | M25: =G25-K25 -> 0 | N25: =K25*$G$6 -> 0
B26: 13 | D26: Travel & Transport | G26: 0 | H26: 0 | I26: 0 | K26: 0 | L26: 0 | M26: 0 | N26: 0
B27: 14 | D27: AWP | G27: 0 | H27: 0 | I27: 0 | K27: =H27+I27+J27 -> 0 | L27: =IF(G27>0,K27/G27,0) -> 0 | M27: =G27-K27 -> 0 | N27: 0
B28: 15 | D28: Freight & Fuel | G28: 0 | H28: 0 | I28: 0 | K28: 0 | L28: 0 | M28: 0 | N28: 0
B29: 16 | D29: Accommodation
B30: 17 | D30: DeMobilisation | E30: see Finals section below
B31: 18
B32: 19
B33: 20 | C33: PARTS & MATERIALS
B34: 21 | D34: Riser
B35: 22 | E35: Parts | G35: 0 | H35: 0 | I35: 0 | K35: =H35+I35+J35 -> 0 | L35: =IF(G35>0,K35/G35,0) -> 0 | M35: =G35-K35 -> 0 | N35: =K35*$G$6 -> 0
B36: 23 | E36: Dry + Trimmer | G36: 0 | H36: 0 | I36: 0 | K36: 0 | L36: 0 | M36: 0 | N36: 0
B37: 24 | E37: Compressor-Riser Mount +AMD | G37: 0 | H37: 0 | I37: 0 | K37: 0 | L37: 0 | M37: 0 | N37: 0
B38: 25 | E38: Head Box & Head Wrench | G38: 0 | H38: 0 | I38: 0 | K38: 0 | L38: 0 | M38: 0 | N38: 0
B39: 26 | E39: BFP Strobe | G39: 0 | H39: 0 | I39: 0 | K39: 0 | L39: 0 | M39: 0 | N39: 0
B40: 27 | D40: FDC
B41: 28 | E41: Parts-Plate Snoot Clappers | G41: 0 | H41: 0 | I41: 0 | K41: =H41+I41+J41 -> 0 | L41: =IF(G41>0,K41/G41,0) -> 0 | M41: =G41-K41 -> 0 | N41: =K41*$G$6 -> 0
B42: 29 | E42: Knox Lock Cap/s | G42: 0 | H42: 0 | I42: 0 | K42: 0 | L42: 0 | M42: 0 | N42: 0
B43: 30 | E43: Horn/Strobe | G43: 0 | H43: 0 | I43: 0 | K43: =H43+I43+J43 -> 0 | L43: =IF(G43>0,K43/G43,0) -> 0 | M43: =G43-K43 -> 0 | N43: 0
B44: 31 | E44: Labour | G44: 0 | H44: 0 | I44: 0 | K44: =H44+I44+J44 -> 0 | L44: =IF(G44>0,K44/G44,0) -> 0 | M44: =G44-K44 -> 0 | N44: 0
B45: 32 | G45: 0 | H45: 0 | I45: 0 | K45: 0 | L45: 0 | M45: 0 | N45: 0
B46: 33 | D46: Ground Floor
B47: 34 | E47: Material | G47: 0 | H47: 0 | I47: 0 | K47: =H47+I47+J47 -> 0 | L47: =IF(G47>0,K47/G47,0) -> 0 | M47: =G47-K47 -> 0 | N47: =K47*$G$6 -> 0
B48: 35 | E48: Labour | G48: 0 | H48: 0 | I48: 0 | K48: 0 | L48: 0 | M48: 0 | N48: 0
B49: 36 | E49: Fabrication | G49: 0 | H49: 0 | I49: 0 | K49: 0 | L49: 0 | M49: 0 | N49: 0
B50: 37 | D50: Attic Wet CPVC
B51: 38 | G51: 0 | H51: 0 | I51: 0 | K51: =H51+I51+J51 -> 0 | L51: =IF(G51>0,K51/G51,0) -> 0 | M51: =G51-K51 -> 0 | N51: =K51*$G$6 -> 0
B52: 39 | G52: 0 | H52: 0 | I52: 0 | K52: 0 | L52: 0 | M52: 0 | N52: 0
B53: 40 | G53: 0 | H53: 0 | I53: 0 | K53: 0 | L53: 0 | M53: 0 | N53: 0
B54: 41 | G54: 0 | H54: 0 | I54: 0 | K54: =H54+I54+J54 -> 0 | L54: =IF(G54>0,K54/G54,0) -> 0 | M54: =G54-K54 -> 0 | N54: 0
B55: 42 | G55: 0 | H55: 0 | I55: 0 | K55: 0 | L55: 0 | M55: 0 | N55: 0
B56: 43 | D56: Attic Dry
B57: 44 | E57: Material | G57: 0 | H57: 0 | I57: 0 | K57: =H57+I57+J57 -> 0 | L57: =IF(G57>0,K57/G57,0) -> 0 | M57: =G57-K57 -> 0 | N57: =K57*$G$6 -> 0
B58: 45 | E58: Labour | G58: 0 | H58: 0 | I58: 0 | K58: 0 | L58: 0 | M58: 0 | N58: 0
B59: 46 | E59: Fabrication | G59: 0 | H59: 0 | I59: 0 | K59: 0 | L59: 0 | M59: 0 | N59: 0
B60: 47 | G60: 0 | H60: 0 | I60: 0 | K60: 0 | L60: 0 | M60: 0 | N60: 0
B61: 48 | C61: ANCILLIARY
B62: 49 | D62: Documentation/Publishing | G62: 0 | H62: 0 | I62: 0 | K62: =H62+I62+J62 -> 0 | L62: =IF(G62>0,K62/G62,0) -> 0 | M62: =G62-K62 -> 0 | N62: =K62*$G$6 -> 0
B63: 50 | G63: 0 | H63: 0 | I63: 0 | K63: =H63+I63+J63 -> 0 | L63: =IF(G63>0,K63/G63,0) -> 0 | M63: =G63-K63 -> 0 | N63: 0
B64: 51 | G64: 0 | H64: 0 | I64: 0 | K64: 0 | L64: 0 | M64: 0 | N64: 0
B65: 52
B66: 53 | C66: EXTERNAL SUBS
B67: =+B66+1 -> 54 | D67: Core Drilling, Remediation & Sleeves | G67: 0 | H67: 0 | I67: 0 | K67: =H67+I67+J67 -> 0 | L67: =IF(G67>0,K67/G67,0) -> 0 | M67: =G67-K67 -> 0 | N67: =K67*$G$6 -> 0
B68: 55 | D68: Elecrical | G68: 0 | H68: 0 | I68: 0 | K68: =H68+I68+J68 -> 0 | L68: =IF(G68>0,K68/G68,0) -> 0 | M68: =G68-K68 -> 0 | N68: 0
B69: 56 | D69: NICET Visits | G69: 0 | H69: 0 | I69: 0 | K69: =H69+I69+J69 -> 0 | L69: =IF(G69>0,K69/G69,0) -> 0 | M69: =G69-K69 -> 0 | N69: 0
B70: 57
B71: 58
B72: 59 | C72: FINALS
B73: 60 | D73: Printing-Drawings-Manuals-Tags | G73: 0 | H73: 0 | I73: 0 | K73: =H73+I73+J73 -> 0 | L73: =IF(G73>0,K73/G73,0) -> 0 | M73: =G73-K73 -> 0 | N73: =K73*$G$6 -> 0
B74: 61 | D74: Testing & Inspections Trip Test | G74: 0 | H74: 0 | I74: 0 | K74: =H74+I74+J74 -> 0 | L74: =IF(G74>0,K74/G74,0) -> 0 | M74: =G74-K74 -> 0 | N74: =K74*$G$6 -> 0
B75: 62 | D75: Training | G75: 0 | H75: 0 | I75: 0 | K75: 0 | L75: 0 | M75: 0 | N75: =K75*$G$6 -> 0
B76: 63 | D76: DeMobilisation | G76: 0 | H76: 0 | I76: 0 | K76: =H76+I76+J76 -> 0 | L76: =IF(G76>0,K76/G76,0) -> 0 | M76: =G76-K76 -> 0 | N76: =K76*$G$6 -> 0
B77: 64
B78: 65 | C78: PROJECT MANAGEMENT
B79: 66 | G79: 0 | H79: 0 | I79: 0 | K79: =H79+I79+J79 -> 0 | L79: =IF(G79>0,K79/G79,0) -> 0 | M79: =G79-K79 -> 0 | N79: =K79*$G$6 -> 0
B80: 67 | G80: 0 | H80: 0 | I80: 0 | K80: 0 | L80: 0 | M80: 0 | N80: =K80*$G$6 -> 0
B81: 68
B82: 69 | C82: SCO-PCO-CCO
B83: 70 | D83: CCO-01 | G83: 0 | H83: 0 | I83: 0 | K83: =H83+I83+J83 -> 0 | L83: =IF(G83>0,K83/G83,0) -> 0 | M83: =G83-K83 -> 0 | N83: =K83*$G$6 -> 0
B84: 71 | D84: CCO-02 | G84: 0 | H84: 0 | I84: 0 | K84: =H84+I84+J84 -> 0 | L84: =IF(G84>0,K84/G84,0) -> 0 | M84: =G84-K84 -> 0 | N84: 0
B85: 72 | D85: CCO-03 | G85: 0 | H85: 0 | I85: 0 | K85: 0 | L85: 0 | M85: 0 | N85: 0
B86: 73 | D86: CCO-03 | G86: 0 | H86: 0 | I86: 0 | K86: 0 | L86: 0 | M86: 0 | N86: 0
B87: =+B86+1 -> 74 | D87: CCO-04 | G87: 0 | H87: 0 | I87: 0 | K87: 0 | L87: 0 | M87: 0 | N87: 0
B88: 75 | D88: CCO-05 | G88: 0 | H88: 0 | I88: 0 | K88: 0 | L88: 0 | M88: 0 | N88: 0
B89: 76 | H89: 0 | I89: 0 | K89: 0 | L89: 0 | M89: 0 | N89: 0
C91: GRAND TOTALS | G91: =SUM(G14:G90) -> 3415 | H91: =SUM(H14:H90) -> 0 | I91: =SUM(I14:I90) -> 0 | J91: =SUM(J14:J90) -> 0 | K91: =SUM(K14:K90) -> 0 | L91: =K91/G91 -> 0 | M91: =G91-K91 -> 3415 | N91: =SUM(N14:N90) -> 0
B93: Users may obtain validation of this document by requesting of the license a completed AIA Document D401 - Certification of Document's Authenticity
B94: V2017-09-20 12:11 | H94: =SUM(H19:H90) -> 0 | I94: =SUM(I19:I90) -> 0 | J94: =+J91 -> 0 | K94: =SUM(K19:K90) -> 0 | N94: =SUM(N19:N90) -> 0
C97: CCO-PCO-SCO | H97: Amounts
C99: Note to Office
C100: =+C10 &" is Main, & should show initial Sched of Values & total" -> see G702 Invoice number is Main, & should show initial Sched of Values & total | H100: =+'G702'!E25 -> 5500
D102: =+D83 -> CCO-01 | G102: =IF(B102>0,G83,0) -> 0
D103: CCO-02 | G103: 0
D104: CCO-03 | G104: 0
D105: CCO-03 | G105: 0
D106: CCO-04 | G106: 0
D107: CCO-05 | G107: 0
G110: =SUM(G98:G109) -> 0 | H110: =SUM(H98:H109)+G110 -> 5500
C112: Supplied Construction Extinguishers on site: | E112: None requested | F112: 0

Sheet Instructions
H1: Note: This Workbook is Macro-Enabled
A2: INSTRUCTIONS for:
B3: The G702 -Application & Certification for Payment & the G703 Continuation Sheet.
L4: Fire Suppression Services Incorporated
A5: Create a NEW file each month. (Copy this file to the General's Job-Payments Folder) and name it in format yyyy-mm-dd Schedule of Values.xlsx
A6: Click 'View-ArrangeAll-select horizontal-Ok' to see the sheet tabs at the bottom of the workbook.
B7: or if macros are disabled, The Security Warning: Macros have been disabled, above appears, click options and enable this Content
I8: and we will resize the form for you.
A9: Yellow = HiLite Don't touch! , Buff or Blue: You fill in data | F9: Grayed columns are where $retain calcs occur
A11: G702
B12: Fill in the G702 Application & Certification for Payment | L12: First page
B13: TO: Contractor (General's) Name and Address
B14: Project name | E14: Architects Name Address
B15: Application date
B16: Period: the dates this application covers
B17: Contract number (off your Contract document)
B18: Place an 'Tick' in the appropriate 'Distribution To' box
B19: FROM: Your Company name should be in to the 'From subcontractor'
B21: In the 'Contractor's Application for Payment' section,
B24: LINE 1. | C24: Fill in the sum from the ORIGINAL contract document. It NEVER changes, from Start to End of the Contract term.
B25: LINE 2. | C25: Net Change by Change Orders. Add up in your head all the CCO's that have been APPROVED by the General
C26: and enter the total here. | L26: 2016-Dec it now comes from D53 [NET CHANGES by Change Order]
B27: LINE 3. | C27: Contract Sum to Date, will total automatically
B28: LINE 4. | C28: Total Completed & Stored comes from the left side of column G on the G703
B29: LINE 5. | C29: Retainage
C30: Your contract should set the retention terms, if any. (often it is 5%)
D31: FSSI never accepts retention on Bonds, Design or Permitting
D32: If we are required to underwrite a Bond/s for the GC or Owner, No Retention on any item.
E33: Bond is a 'Money-Back' guarantee. There is no need to also have retention.
E34: Bond/s serve same purpose as retention
D35: If it's 5% for both, enter % in appropriate slot.
E36: 5a | F36: Completed work. Enter the appropriate %.
G37: Amounts to the right are calculated from bottom of
G38: column D + E on the G703 | L38: CHECK with GENERAL, they may not
E39: 5b | F39: Stored materials.. Enter the appropriate % | L39: allow STORED Materials
G40: Amounts to the right are calculated from bottom of
G41: column F on the G703
F42: Total retainage, the lesser is used because FSSI does not permit retainage
L43: on Bond, Design or Permits
B44: LINE 6. | C44: Total Earned Less Retainage
C45: Calculated using LINE4 minus the lesser of 5a or 5b
B47: LINE 7. | C47: Enter the amount from your PREVIOUS pay applications LINE 6: Total Earned Less Retainage
D48: Trust the paper trail; This application does NOT care whether you have been paid.
D49: It only cares whether you have EARNED additional payment.
D50: So do NOT enter payments received! | L50: Use the ChequeList sheet instead
B51: LINE 8.
C52: Line6 minus Line7
C53: It represents the value we should be paid for work during this pay period AND any change in retainage during the period.
B54: LINE 9. | C54: Balance to Finish INCLUDING retainage.
C55: Line3 minus Line6
C56: The payment you are still owed AFTER this application is paid
B59: CHANGE ORDER SUMMARY TABLE
C60: Separate out the CCO's that add money to your contract from those that subtract money from the contract.
C61: The Net Changes by Change Order should be EXACTLY equal to LINE 2
C62: Amounts must also be added to the G703 Schedule of Values column
L63: In the G703 lower section labeled SCO-PCO-CCO
A65: G703
B66: Fill in the G703 Continuation Sheet | L66: Second page
B67: Column A Item number
B68: Number the items in column A
B69: FSSI always puts Bond first, Design, Permit & Submittals next
C70: We MUST pay the Surety the full amount of the Bond within FIVE days of underwriting
C71: with SEASONED funds, or it is cancelled. Which 'ticks-off' the Owner/GC
C72: We must pay Design Engineers for their Stamp or they Lien the Property. NB: I said Lien, NOT 'SCR notice to rights to'.
C73: We are required by Law to pay, in full, all AHJ's upon submission of Request for Design approval & Plan Review.
D74: and for the Permit, else the Owner cannot release the property to the General for construction …
D75: … and their insurance is compromised.
E76: (Submittals, to us FSS, means to an AHJ, NOT to the Owner/Contractor)
B78: Column B Description of Work
B79: Enter the Item description in column B 'Description' from your Cost Accounting folks or the Estimator's Bid Document.
L80: Note: BE BRIEF!
B81: Extra Items like Net Change in CCO's that are approved are also entered. | L81: In the G703 lower section labeled SCO-PCO-CCO
B82: Create a new line item by copying a cell line from spreadsheet column B to column K. i.e. B30::N30
L83: Never change the amount of any original line item.
L84: It forms the 'Schedule of Values' that is sent on Notice of Award
B85: Column C From previous application
B86: Enter the dollar amount of each item in column C 'Schedule of Values' from your Cost Accounting folks or the Estimator's Bid Document.
C87: The total at the bottom of column C should initially total to the original contract amount
C88: As you add CCO net items, this total will change.
B90: Column D & E Work Completed
C91: Column D
C92: Enter the amounts for each item that you submitted from the PREVIOUS application
C93: (The total of requested payments for work you submitted for all previous months) | L93: use the Addition method in the cell
C94: Column E
C95: Enter the amounts for each item that you have completed THIS period, & requesting payment for.
L96: E.g.. The work you did THIS month
B97: Column F Stored Materials
C98: If you have delivered pipe, valves, sheetrock, framing or like materials ON TO the site enter their dollar amount here.
D99: This column is for items that are not yet attached to, or incorporated into, the building but will soon be, and ..
D100: are APPROVED for payment
D101: Materials presently stored but not yet incorporated into the work are listed separately in Column F.
D102: Materials which continue to be stored in the following months pay periods should stay listed in Column F
D103: until the materials are incorporated into the work,
E104: at which time they are moved to Column E.
D105: Do NOT include labour or any NON-materials items.
D106: The Owner's Bank/Financier/Insurance folk need to know about these items.
D107: Our Bank/Insurance/Surety/Supplier/Lien Holder also need to know.
B110: Column G Total completed and stored
C111: Automatically calculates the amount and percentage completed
B113: Column H Balance to finish
C114: Automatically calculates how much you are still owed by the contractor/owner when you finish the job
C115: and submit future applications for payments
B117: Column I Retainage
C118: If it is at varying rates you may have to change the formula in these cells.
D119: The total at the bottom of the column should be the same as that on LINE 5 on the G702
D120: Note, though, that FSSI does not permit retainage on Bond, Design Permit
D121: and that if we supply a Bond, there should be ZERO retainage. (AIA standards)
A126: Change Orders
A128: Enter the amount(s) on BOTH the G702 AND the G703.
B130: Additions (Extras)
B132: G702:
C133: Add the total value to the "Change Order Summary" in the Additions section.
C134: It will automatically transfer to Line 2 and calculate Line 3.
B135: G703:
C136: Do not change the amount of any original line item.
C137: Create a new line item at the end and enter the total amount of the addition in the "C" column.
D138: Example:
D139: (standard description) "Net of Change Order #1": 1,000.00
E140: Calculate the amount up to 100%, as the work is completed.
B142: Credits or Deductions (Negative Numbers)
B144: G702:
C145: Add the total value to the "Change Order Summary" in the Deductions section.
C146: It will automatically transfer to Line 2 and calculate Line 3.
B147: G703:
C148: Do NOT change the amount of any original line items.
C149: Calculate the original amount in column "C" at 100% completed, after all work is completed.
D150: Create a new line item at the end of the list and enter the deduction amount with a minus sign.
D151: Example:
D152: (standard description) "Net of Change Order #2": -5,000.00
D153: Enter the amount in column "C" with a minus sign. (-)
D154: Enter the amount in column "E" with a minus sign (-) after all work is completed.
C155: Calculate retainage, column "I", if any. It will display a negative amount.
C157: Accounting Tip, negative numbers:
D158: To balance the accounting, calculate both the original line item amount and
D159: the credit line item at 100% completed AFTER all work is completed.
B160: Author's Note:
C161: It is good practice not to alter previous Pay Requests.
C162: "Duplicate" this file, then add any changes.
A165: Finishing
B166: When completed, click the Office button, top left corner
B167: HOVER over 'Save as ..' (the HOVER is important!) | I167: or Click [File]
B168: And in the ‘Fly-out’ Click 'pdf or xps .." to save the page/s as a pdf file
C169: save it as a pdf file
C170: email the pdf to your upline (GC/Owner)
B171: REPEAT the process with a new file each month
A173: Arun (Mr.)
A174: CCM
A175: Fire Suppression Services Incorporated
A176: Authors Note:
B178: Our 'AIA G702-703' has been modified to reflect our Surety & Insurance & AHJ requirements, and may not quite suit 'Other Trades'
B179: Specifically there is no retainage if we are Bonded to the Owner/GC, & no retainage on Bond Permit Design & Submittal to AHJ's)
B180: The Calculated fields are 'Protected' (Format Cells-Protection, in excel)
B181: The Sheets are protected (Review-Protect Sheet, in excel)
B182: .. And
B183: .. this is by no means an exhaustive instruction set. Refer to the AIA at: | H183: http://www.aia.org/
B184: Created 2012-09-01 | H184: Revised: 2014-05-02 added Stored Materials
H185: Revised: 2014-10-22 Moved Stored Material info to Col F paragraph
H186: Revised: 2016-12-05 Updated/Extended ChequeList Sheet

Sheet Sprinks
A1: Sprinks
B2: INCOMPLETE - WORK IN-PROGRESS TO EDIT ARUN
D5: Enter Sq Foot | F5: 1.85 | J5: Notes
C7: Ground | D7: 10848
C8: Attic | D8: 11704
C9: Area A | D9: 0
C10: Area B
D11: 0 | J11: <- Insert additional rows here if required
C13: Total | D13: 22552 | F13: 41721.2 | J13: <-- Price should be near this
D15: Enter | F15: Enter Price | G15: Don't touch | I15: Cost
D16: Unit/s | E16: Desc | F16: each | G16: extension | I16: Price | J16: Notes
D19: 22552 | E19: Design | F19: 0.16 | G19: 3608.32 | I19: 0.13
D20: 1 | E20: Submit | F20: 150 | G20: 150
D21: 1 | E21: Permit | F21: 1000 | G21: 1000
C23: Printing Drawings -Design-Submit stage | E23: Printing Drawings -Design-Submit stage
C25: Mobilisation | D25: 1 | E25: Mobilisation | F25: 500 | G25: =+D25*F25 -> 500 | J25: Mobilization, DeMob, ReMobilization
C28: Riser | E28: Riser
C29: Wet | D29: 1 | E29: Transport | F29: 1000 | G29: 1000
C30: Dry + Trimmer | D30: 1 | E30: Drawings | F30: 150 | G30: 150 | J30: Prices for AWP's
C31: Compressor-Riser Mount +AMD | D31: 1 | E31: FDC | F31: 1500 | G31: 1500 | J31: Price for FDC
C32: Head Box & Head Wrench | D32: 1 | E32: Riser Assmbly | F32: 1860 | G32: 1860
C33: FDC-BFP Strobe | D33: 1 | E33: dry vlv, ac, amd | F33: 5000 | G33: 5000 | J33: ENTER DATA ONLY IN the CYAN cells
D34: 1 | E34: Attic | F34: 5000 | G34: 5000
C35: Ground Floor | D35: 1 | E35: main floor | F35: 4000 | G35: 4000
C36: Material | D36: 1 | E36: Compressor | F36: 1800 | G36: 1800
C37: Labour | E37: DeMob | G37: 0
C38: Fabrication | G38: 0 | J38: <- Insert additional rows here if required
C39: Attic | D39: 1 | E39: Freight | F39: 1000 | G39: 1000
C40: Material | D40: Insert rows ABOVE here where needed
C41: Labour
C42: Fabrication | D42: 280 | E42: Labor | F42: 50 | G42: 14000 | I42: 2x Chaps | J42: Davis Bacon
E43: Labor OT | F43: 55 | G43: 0
C44: Core Drilling, Remediation Sleeves
D45: 1 | E45: Project Management | F45: 0.02 | G45: 811.37 | H45: 40568.32 | J45: You do PM labour
C46: Alarms | D46: 1 | E46: Training | F46: 55 | G46: 55
C47: Horns Strobes Smokes, riser room fittings & Wire | D47: 1 | E47: MarkUp | F47: 0.3 | G47: 7970.5 | H47: 26568.32 | J47: you do not 'mark-up' labour
C48: Pull Station x4 | E48: Commission | F48: 0.01 | G48: 0
C49: FACP, Modules & Relays | D49: 1 | E49: Fudge | F49: 0.82 | G49: 0.82
C50: Labour
E51: Total | G51: 49406
G53: 2.19 | J53: Price per Sq Ft
E54: Bond | F54: 0.05 | G54: 2470.3 | I54: 0.035
C55: FE/FEC
C56: FE's 1x ##lb ABC Badger series w/hooks @$70.00
C57: FEC's 1x 1817F17 Ambassador series @204.00
C61: AWP
C62: Freight
C63: Travel & Transport $250 x 4 wks
C64: External Subs
C65: Project Management
C68: Finals
C69: Printing-Drawings-Manuals-Tags
C70: Testing & Inspections Trip Test
C71: Training
C72: DeMob
C74: SCO-PCO-CCO
C75: Net CCO #1 External Dry heads $8400
C76: 60 hours + 40 heads

Sheet Alarms
A1: =+'G702'!E3 -> La Caille Phase I | O1: Legal Services | W1: Testing | Z1: Printing | AA1: Admin
D2: Description | J2: Unit P | K2: Extension | L2: Design | M2: Submit | N2: Permit | O2: Lien | Q2: Parts | R2: Pull | S2: FACP | T2: MDM | U2: Labour | W2: Insp.Trip | X2: Finals | Y2: Training | Z2: O&M's | AA2: PM | AB2: Freight
D4: Bond | J4: 0 | K4: =+C4*J4 -> 0
C5: 1 | D5: Design | J5: 450 | K5: 450 | L5: =+K5 -> 450
C6: 1 | D6: Submit | J6: 200 | K6: 200 | M6: =+K6 -> 200
C7: 1 | D7: Permit | J7: 125 | K7: 125 | N7: =+K7 -> 125
C8: 1 | D8: Mobilization | J8: 75 | K8: 75 | T8: =+K8 -> 75
D9: Legal | J9: 15 | K9: 0 | O9: =+K9 -> 0
C10: 9 | D10: Horns & Strobes | J10: 47 | K10: 423 | Q10: =+K10 -> 423
C11: 1 | D11: Horn/Strobe Weatherproof | J11: 105 | K11: 105 | Q11: =+K11 -> 105
C12: 3 | D12: Strobes | J12: 41 | K12: 123 | Q12: =+K12 -> 123
C13: 19 | D13: Addressable Smoke Detectors-Sounder Bases | J13: 68 | K13: 1292 | Q13: =+K13 -> 1292
C14: 1 | D14: VS1 Fire Panel (xx-zone) | J14: 525 | K14: 525 | S14: =+K14 -> 525
C15: 4 | D15: CT1 Alarm contacts for riser | J15: 42 | K15: 168 | Q15: =+K15 -> 168
C16: 4 | D16: Pull Station | J16: 52 | K16: 208 | R16: =+K16 -> 208
C17: 2 | D17: Control Relays & Modules | J17: 55 | K17: 110 | S17: =+K17 -> 110
C18: 2 | D18: Monitor Modules | J18: 60 | K18: 120 | S18: =+K18 -> 120
D19: Booster Power Power Supplies | J19: 1800 | K19: 0
D20: Adapter -Class A | J20: 68 | K20: 0
C21: 2 | D21: Wire -Fire 14/2 | J21: 350 | K21: 700 | Q21: =+K21 -> 700
C22: 1 | D22: Parts & Accessories, back-boxes etc. | J22: 500 | K22: 500 | Q22: =+K22 -> 500
C23: 1 | D23: Panel Programming | J23: 75 | K23: 75 | W23: =+K23 -> 75
C24: 1 | D24: Freight | J24: 50 | K24: 50 | AB24: =+K24 -> 50
D25: Labour Description | E25: Hours | G25: days | I25: Total Hours
C26: 3 | D26: Labor Techs at | E26: 8 | F26: hours over | G26: 5 | I26: =+C26*E26*G26 -> 120 | J26: 70 | K26: =+I26*J26 -> 8400 | U26: =+K26 -> 8400
D27: Finals
C28: 1 | D28: Testing & Inspections Trip Test | J28: 150 | K28: =+C28*J28 -> 150 | W28: =+K28 -> 150
C29: 1 | D29: De-Mob | J29: 75 | K29: =+C29*J29 -> 75 | T29: =+K29 -> 75
C30: 1 | D30: Printing As-Builts, Manuals. Tags RedLines | J30: 150 | K30: =+C30*J30 -> 150 | Z30: =+K30 -> 150
D31: Legal | J31: 15 | K31: =+C31*J31 -> 0 | O31: =+K31 -> 0
D32: Description | E32: Hours | G32: days | I32: Total Hours
C33: 1 | D33: Training | E33: 1 | F33: hours over | G33: 1 | I33: =+C33*E33*G33 -> 1 | J33: 75 | K33: =+I33*J33 -> 75 | Y33: =+K33 -> 75
C34: 1 | D34: Project Management | E34: 0.25 | G34: 5 | I34: =+C34*E34*G34 -> 1.25 | J34: 75 | K34: =+I34*J34 -> 93.75 | AA34: =+K34 -> 93.75
J35: 0 | K35: 0
C36: 1 | D36: Fudge | I36: 2.25 | J36: 0 | K36: =+C36*I36 -> 2.25 | R36: 2 | AA36: 0.25
K38: =SUM(K3:K37) -> 14195 | L38: =SUM(L3:L37) -> 450 | M38: =SUM(M3:M37) -> 200 | N38: =SUM(N3:N37) -> 125 | O38: =SUM(O3:O37) -> 0 | Q38: =SUM(Q3:Q37) -> 3311 | R38: =SUM(R3:R37) -> 210 | S38: =SUM(S3:S37) -> 755 | T38: =SUM(T3:T37) -> 150 | U38: =SUM(U3:U37) -> 8400 | W38: =SUM(W3:W37) -> 225 | X38: =SUM(X3:X37) -> 0 | Y38: =SUM(Y3:Y37) -> 75 | Z38: =SUM(Z3:Z37) -> 150 | AA38: =SUM(AA3:AA37) -> 94 | AB38: 50
K39: =SUM(L38:AB38) -> 14195 | L39: =+L2 -> Design | M39: =+M2 -> Submit | N39: =+N2 -> Permit | O39: =+O2 -> Lien | Q39: Parts | R39: Pull | S39: FACP | T39: MDM | U39: Labour | W39: Insp.Trip | X39: Finals | Y39: Training | Z39: O&M's | AA39: =+AA2 -> PM | AB39: Freight
M42: =14195-K39 -> 0

Sheet ChequeList
C1: 1 = Design, 2 = Permit Submit | F1: START Date:--> | H1: =+'G703'!J6 -> 2020-12-10 | I1: 2019-01-20 | J1: <--Enter Start of App Period
C2: 3 = Parts, 4 = Fabrication, 5 = Travel Transport AWP
H4: G702 | I4: =SUM(I6:I167) -> 0 | J4: =SUM(J6:J167) -> 0 | K4: 0 | L4: 0 | M4: 0 | N4: 0 | O4: 0 | P4: 0 | Q4: 0 | R4: 0 | U4: G702/$Net
B5: Cheques to receive as @ | D5: =NOW() -> 2020-12-15T15:23:50.540 | E5: PAID | F5: Date Rec'd | G5: Chk # | H5: App-# | I5: =+C7 -> 01 Design FSS | J5: =+C8 -> 01 Design SFPS | K5: =+C9 -> 02 Permit Submit AHJ | L5: =+C10 -> 03 Parts FFab | M5: =+C11 -> 03 Parts HD Supply | N5: =+C12 -> 04 FabAFS | O5: =+C13 -> 04 Fab Driller | P5: =+C14 -> 05 AWP Howe | Q5: =+C15 -> 05 AWP FSS Fork Lift | R5: =+C16 -> Other | T5: =+C18 -> FSS | U5: Gross
H6: 1
A7: =+A5+1 -> 1 | C7: 01 Design FSS | I7: =+E7 -> 0
A8: =+A7+1 -> 2 | C8: 01 Design SFPS | J8: =+E8 -> 0
A9: 3 | C9: 02 Permit Submit AHJ | K9: =+E9 -> 0
A10: 4 | C10: 03 Parts FFab | L10: =+E10 -> 0
A11: 5 | C11: 03 Parts HD Supply | M11: =+E11 -> 0
A12: 6 | C12: 04 FabAFS | N12: =+E12 -> 0
A13: 7 | C13: 04 Fab Driller | O13: =+E13 -> 0
A14: 8 | C14: 05 AWP Howe | P14: =+E14 -> 0
A15: 9 | C15: 05 AWP FSS Fork Lift | Q15: =+E15 -> 0
A16: 10 | C16: Other | R16: =+E16 -> 0
A17: 11
A18: 12 | C18: FSS | D18: ="Period end: " & TEXT((EDATE($H$1,0)),"mmm")&" " -> Period end: Dec | E18: =+U18-SUM(E6:E17) -> 0 | H18: =+H6 -> 1 | T18: =+E18 -> 0
A20: =+A18+1 -> 13 | C20: =+C7 -> 01 Design FSS | I20: =+E20 -> 0
A21: 14 | C21: 01 Design SFPS | J21: =+E21 -> 0
A22: 15 | C22: 02 Permit Submit AHJ | K22: =+E22 -> 0
A23: 16 | C23: 03 Parts FFab | L23: =+E23 -> 0
A24: 17 | C24: 03 Parts HD Supply | M24: =+E24 -> 0
A25: 18 | C25: 04 FabAFS | N25: =+E25 -> 0
A26: 19 | C26: 04 Fab Driller | O26: =+E26 -> 0
A27: 20 | C27: 05 AWP Howe | P27: =+E27 -> 0
A28: 21 | C28: 05 AWP FSS Fork Lift | Q28: =+E28 -> 0
A29: 22 | C29: Other | R29: =+E29 -> 0
A30: 23
A31: 24 | C31: =+C18 -> FSS | D31: ="Period end: " & TEXT((EDATE($H$1,1)),"mmm")&" " -> Period end: Jan | E31: =+U31-SUM(E19:E30) -> 0 | H31: =+H18+1 -> 2 | T31: =+E31 -> 0
A32: 25
A33: 26 | C33: =+C20 -> 01 Design FSS | I33: =+E33 -> 0
A34: 27 | C34: 01 Design SFPS | J34: =+E34 -> 0
A35: 28 | C35: 02 Permit Submit AHJ | K35: =+E35 -> 0
A36: 29 | C36: 03 Parts FFab | L36: =+E36 -> 0
A37: 30 | C37: 03 Parts HD Supply | M37: =+E37 -> 0
A38: 31 | C38: 04 FabAFS | N38: =+E38 -> 0
A39: 32 | C39: 04 Fab Driller | O39: =+E39 -> 0
A40: 33 | C40: 05 AWP Howe | P40: =+E40 -> 0
A41: 34 | C41: 05 AWP FSS Fork Lift | Q41: =+E41 -> 0
A42: 35 | C42: Other | R42: =+E42 -> 0
A43: 36
A44: 37 | C44: =+C31 -> FSS | D44: ="Period end: " & TEXT((EDATE($H$1,2)),"mmm")&" " -> Period end: Feb | E44: =+U44-SUM(E32:E43) -> 0 | H44: =+H31+1 -> 3 | T44: =+E44 -> 0
A45: 38
A46: 39 | C46: =+C33 -> 01 Design FSS | I46: =+E46 -> 0
A47: 40 | C47: 01 Design SFPS | J47: =+E47 -> 0
A48: 41 | C48: 02 Permit Submit AHJ | K48: =+E48 -> 0
A49: 42 | C49: 03 Parts FFab | L49: =+E49 -> 0
A50: 43 | C50: 03 Parts HD Supply | M50: =+E50 -> 0
A51: 44 | C51: 04 FabAFS | N51: =+E51 -> 0
A52: 45 | C52: 04 Fab Driller | O52: =+E52 -> 0
A53: 46 | C53: 05 AWP Howe | P53: =+E53 -> 0
A54: 47 | C54: 05 AWP FSS Fork Lift | Q54: =+E54 -> 0
A55: 48 | C55: Other | R55: =+E55 -> 0
A56: 49
A57: 50 | C57: =+C44 -> FSS | D57: ="Period end: " & TEXT((EDATE($H$1,3)),"mmm")&" " -> Period end: Mar | E57: =+U57-SUM(E45:E56) -> 0 | H57: =+H44+1 -> 4 | T57: =+E57 -> 0
A58: 51
A59: 52 | C59: =+C46 -> 01 Design FSS | I59: =+E59 -> 0
A60: 53 | C60: 01 Design SFPS | J60: =+E60 -> 0
A61: 54 | C61: 02 Permit Submit AHJ | K61: =+E61 -> 0
A62: 55 | C62: 03 Parts FFab | L62: =+E62 -> 0
A63: 56 | C63: 03 Parts HD Supply | M63: =+E63 -> 0
A64: 57 | C64: 04 FabAFS | N64: =+E64 -> 0
A65: 58 | C65: 04 Fab Driller | O65: =+E65 -> 0
A66: 59 | C66: 05 AWP Howe | P66: =+E66 -> 0
A67: 60 | C67: 05 AWP FSS Fork Lift | Q67: =+E67 -> 0
A68: 61 | C68: Other | R68: =+E68 -> 0
A69: 62
A70: 63 | C70: =+C57 -> FSS | D70: ="Period end: " & TEXT((EDATE($H$1,4)),"mmm")&" " -> Period end: Apr | E70: =+U70-SUM(E58:E69) -> 0 | H70: =+H57+1 -> 5 | T70: =+E70 -> 0
A71: 64
A72: =+A71+1 -> 65 | C72: =+C59 -> 01 Design FSS | I72: =+E72 -> 0
A73: 66 | C73: 01 Design SFPS | J73: =+E73 -> 0
A74: 67 | C74: 02 Permit Submit AHJ | K74: =+E74 -> 0
A75: 68 | C75: 03 Parts FFab | L75: =+E75 -> 0
A76: 69 | C76: 03 Parts HD Supply | M76: =+E76 -> 0
A77: 70 | C77: 04 FabAFS | N77: =+E77 -> 0
A78: 71 | C78: 04 Fab Driller | O78: =+E78 -> 0
A79: 72 | C79: 05 AWP Howe | P79: =+E79 -> 0
A80: 73 | C80: 05 AWP FSS Fork Lift | Q80: =+E80 -> 0
A81: 74 | C81: Other | R81: =+E81 -> 0
A82: 75
A83: 76 | C83: =+C70 -> FSS | D83: ="Period end: " & TEXT((EDATE($H$1,5)),"mmm")&" " -> Period end: May | E83: =+U83-SUM(E71:E82) -> 0 | H83: =+H70+1 -> 6 | T83: =+E83 -> 0
A84: 77
A85: 78 | C85: =+C72 -> 01 Design FSS | I85: =+E85 -> 0
A86: 79 | C86: 01 Design SFPS | J86: =+E86 -> 0
A87: 80 | C87: 02 Permit Submit AHJ | K87: =+E87 -> 0
A88: 81 | C88: 03 Parts FFab | L88: =+E88 -> 0
A89: 82 | C89: 03 Parts HD Supply | M89: =+E89 -> 0
A90: 83 | C90: 04 FabAFS | N90: =+E90 -> 0
A91: 84 | C91: 04 Fab Driller | O91: =+E91 -> 0
A92: 85 | C92: 05 AWP Howe | P92: =+E92 -> 0
A93: 86 | C93: 05 AWP FSS Fork Lift | Q93: =+E93 -> 0
A94: 87 | C94: Other | R94: =+E94 -> 0
A95: 88
A96: 89 | C96: =+C83 -> FSS | D96: ="Period end: " & TEXT((EDATE($H$1,6)),"mmm")&" " -> Period end: Jun | E96: =+U96-SUM(E84:E95) -> 0 | H96: =+H83+1 -> 7 | T96: =+E96 -> 0
A97: 90
A98: 91 | C98: =+C85 -> 01 Design FSS | I98: =+E98 -> 0
A99: 92 | C99: 01 Design SFPS | J99: =+E99 -> 0
A100: 93 | C100: 02 Permit Submit AHJ | K100: =+E100 -> 0
A101: 94 | C101: 03 Parts FFab | L101: =+E101 -> 0
A102: 95 | C102: 03 Parts HD Supply | M102: =+E102 -> 0
A103: 96 | C103: 04 FabAFS | N103: =+E103 -> 0
A104: 97 | C104: 04 Fab Driller | O104: =+E104 -> 0
A105: 98 | C105: 05 AWP Howe | P105: =+E105 -> 0
A106: 99 | C106: 05 AWP FSS Fork Lift | Q106: =+E106 -> 0
A107: 100 | C107: Other | R107: =+E107 -> 0
A108: 101
A109: 102 | C109: =+C96 -> FSS | D109: ="Period end: " & TEXT((EDATE($H$1,7)),"mmm")&" " -> Period end: Jul | E109: =+U109-SUM(E97:E108) -> 0 | H109: =+H96+1 -> 8 | T109: =+E109 -> 0
A110: 103
A111: 104 | C111: =+C98 -> 01 Design FSS | I111: =+E111 -> 0
A112: 105 | C112: 01 Design SFPS | J112: =+E112 -> 0
A113: 106 | C113: 02 Permit Submit AHJ | K113: =+E113 -> 0
A114: 107 | C114: 03 Parts FFab | L114: =+E114 -> 0
A115: 108 | C115: 03 Parts HD Supply | M115: =+E115 -> 0
A116: 109 | C116: 04 FabAFS | N116: =+E116 -> 0
A117: 110 | C117: 04 Fab Driller | O117: =+E117 -> 0
A118: 111 | C118: 05 AWP Howe | P118: =+E118 -> 0
A119: 112 | C119: 05 AWP FSS Fork Lift | Q119: =+E119 -> 0
A120: 113 | C120: Other | R120: =+E120 -> 0
A121: 114
A122: 115 | C122: =+C109 -> FSS | D122: ="Period end: " & TEXT((EDATE($H$1,8)),"mmm")&" " -> Period end: Aug | E122: =+U122-SUM(E110:E121) -> 0 | H122: =+H109+1 -> 9 | T122: =+E122 -> 0
A123: 116
A124: 117 | C124: =+C111 -> 01 Design FSS | I124: =+E124 -> 0
A125: 118 | C125: 01 Design SFPS | J125: =+E125 -> 0
A126: 119 | C126: 02 Permit Submit AHJ | K126: =+E126 -> 0
A127: 120 | C127: 03 Parts FFab | L127: =+E127 -> 0
A128: 121 | C128: 03 Parts HD Supply | M128: =+E128 -> 0
A129: 122 | C129: 04 FabAFS | N129: =+E129 -> 0
A130: 123 | C130: 04 Fab Driller | O130: =+E130 -> 0
A131: 124 | C131: 05 AWP Howe | P131: =+E131 -> 0
A132: 125 | C132: 05 AWP FSS Fork Lift | Q132: =+E132 -> 0
A133: 126 | C133: Other | R133: =+E133 -> 0
A134: 127
A135: 128 | C135: =+C122 -> FSS | D135: ="Period end: " & TEXT((EDATE($H$1,9)),"mmm")&" " -> Period end: Sep | E135: =+U135-SUM(E123:E134) -> 0 | H135: =+H122+1 -> 10 | T135: =+E135 -> 0
A136: =+A135+1 -> 129
A137: 130 | C137: =+C124 -> 01 Design FSS | I137: =+E137 -> 0
A138: =+A137+1 -> 131 | C138: 01 Design SFPS | J138: =+E138 -> 0
A139: 132 | C139: 02 Permit Submit AHJ | K139: =+E139 -> 0
A140: 133 | C140: 03 Parts FFab | L140: =+E140 -> 0
A141: 134 | C141: 03 Parts HD Supply | M141: =+E141 -> 0
A142: 135 | C142: 04 FabAFS | N142: =+E142 -> 0
A143: 136 | C143: 04 Fab Driller | O143: =+E143 -> 0
A144: 137 | C144: 05 AWP Howe | P144: =+E144 -> 0
A145: 138 | C145: 05 AWP FSS Fork Lift | Q145: =+E145 -> 0
A146: 139 | C146: Other | R146: =+E146 -> 0
A147: 140
A148: 141 | C148: =+C135 -> FSS | D148: ="Period end: " & TEXT((EDATE($H$1,10)),"mmm")&" " -> Period end: Oct | E148: =+U148-SUM(E136:E147) -> 0 | H148: =+H135+1 -> 11 | T148: =+E148 -> 0
A149: 142
A150: 143 | C150: =+C137 -> 01 Design FSS | I150: =+E150 -> 0
A151: 144 | C151: 01 Design SFPS | J151: =+E151 -> 0
A152: 145 | C152: 02 Permit Submit AHJ | K152: =+E152 -> 0
A153: 146 | C153: 03 Parts FFab | L153: =+E153 -> 0
A154: 147 | C154: 03 Parts HD Supply | M154: =+E154 -> 0
A155: 148 | C155: 04 FabAFS | N155: =+E155 -> 0
A156: 149 | C156: 04 Fab Driller | O156: =+E156 -> 0
A157: 150 | C157: 05 AWP Howe | P157: =+E157 -> 0
A158: 151 | C158: 05 AWP FSS Fork Lift | Q158: =+E158 -> 0
A159: 152 | C159: Other | R159: =+E159 -> 0
A160: 153
A161: 154 | C161: =+C148 -> FSS | D161: ="Period end: " & TEXT((EDATE($H$1,11)),"mmm")&" " -> Period end: Nov | E161: =+U161-SUM(E149:E160) -> 0 | H161: =+H148+1 -> 12 | T161: =+E161 -> 0
A162: 155
A166: V2017-01-01 16:00
C168: Total To Receive | E168: =SUM(E6:E167) -> 0 | I168: =+I4 -> 0 | J168: =+J4 -> 0 | K168: 0 | L168: 0 | M168: 0 | N168: 0 | O168: 0 | P168: 0 | Q168: 0 | R168: 0 | U168: =+"Total $" &TEXT(SUM(I168:T168),"#,##0.00;;;") -> Total $
C169: Bal Owing | E169: =+'G703'!G91-ChequeList!E168 -> 3415 | T169: =+E169 -> 3415

Sheet Notes
C6: 2017-09-22 | D6: Added invoice color if blank
C8: 2016-12-05 | D8: Added Orange Bar to ChequeList
D10: Requires Edate from Analysis ToolPak
C12: 2016-08-22 | D12: 2016-08-22 Needs Costing Sheets
D13: remove Sprinks & Alarms ???
H16: Column1
H17: Div-10 44 16 Fire Extinguisher Cabinets or Extinguishers
H18: Div-10 Fire Suppression Chemical -Clean Agent
H19: Div-10 Fire Suppression Chemical-Kitchen Hoods
H20: Div-21 Fire Suppression -Sprinklers
